bitfinex/quotes_SOLUSD_20241031
["timestamp","ask_amount","ask_price","bid_price","bid_amount"]
[1730385136303,26.66736232,170.62,170.58,20.5177]
[1730385138280,26.66736232,170.6,170.54,26.66736232]
[1730385138484,26.66736232,170.57,170.52,32.53176232]
[1730385138705,26.66736232,170.57,170.52,47.19276232]
[1730385139004,26.66736232,170.6,170.54,26.66736232]
[1730385139519,26.66736232,170.6,170.55,20.5217]
[1730385139681,26.66736232,170.61,170.55,47.18906232]
[1730385139887,26.66736232,170.62,170.56,26.66736232]
[1730385140211,26.66736232,170.63,170.57,26.66736232]
[1730385140680,26.66736232,170.62,170.56,26.66736232]
[1730385140881,26.66736232,170.59,170.55,20.5217]
[1730385141089,26.66736232,170.61,170.55,47.18906232]
[1730385141911,26.66736232,170.62,170.57,26.66736232]
[1730385142114,26.66736232,170.63,170.57,26.66736232]
[1730385142626,26.66736232,170.64,170.58,26.66736232]
[1730385142779,26.66736232,170.64,170.56,23.776884]
[1730385142780,26.66736232,170.66,170.61,26.66736232]
[1730385142981,26.66736232,170.68,170.62,26.66736232]
[1730385143190,26.66736232,170.68,170.63,26.66736232]
[1730385143391,26.66736232,170.69,170.63,26.66736232]
[1730385143587,26.66736232,170.69,170.64,26.66736232]
[1730385143792,26.66736232,170.7,170.64,26.66736232]
[1730385143999,26.66736232,170.72,170.66,26.66736232]
[1730385144597,26.66736232,170.74,170.68,26.66736232]
[1730385144804,26.66736232,170.74,170.64,26.76736232]
[1730385144805,26.66736232,170.76,170.7,26.66736232]
[1730385145207,26.66736232,170.77,170.72,26.66736232]
[1730385145510,26.66736232,170.8,170.75,26.66736232]
[1730385145724,26.66736232,170.81,170.75,26.66736232]
[1730385146026,26.66736232,170.8,170.75,26.66736232]
[1730385146197,26.66736232,170.81,170.76,26.66736232]
[1730385146723,26.66736232,170.8,170.75,26.66736232]
[1730385147526,0.7050007,170.87,170.79,50.44424632]
[1730385147527,0.6050007,170.87,170.79,50.44424632]
[1730385147732,27.27236302,170.87,170.82,26.66736232]
[1730385148025,0.6050007,170.87,170.83,26.66736232]
[1730385148210,0.6050007,170.87,170.85,26.66736232]
[1730385148410,0.6050007,170.87,170.82,0.22549]
[1730385148719,0.6050007,170.87,170.86,26.66736232]
[1730385149110,0.6050007,170.87,170.86,50.44424632]
[1730385149915,0.6050007,170.87,170.86,56.29694632]
[1730385151026,0.6050007,170.87,170.86,5.8527]
[1730385151712,0.6050007,170.87,170.85,14.6324]
[1730385152022,0.6050007,170.87,170.85,20.4854]
[1730385152819,0.6050007,170.87,170.83,26.66736232]
[1730385153031,27.27236302,170.87,170.83,23.776884]
[1730385153409,27.27236302,170.87,170.83,29.630484]
[1730385153608,27.27236302,170.87,170.81,26.66736232]
[1730385153807,33.12476302,170.87,170.81,26.66736232]
[1730385154025,26.66736232,170.86,170.81,26.66736232]
[1730385154228,26.66736232,170.85,170.8,47.15906232]
[1730385154528,26.66736232,170.85,170.8,41.30436232]
[1730385154729,25.66736232,170.85,170.8,14.637]
[1730385154913,26.66736232,170.82,170.76,32.52346232]
[1730385155110,26.66736232,170.8,170.75,27.0197]
[1730385155314,26.66736232,170.8,170.75,20.4975]
[1730385155611,26.66736232,170.8,170.75,47.16486232]
[1730385155806,26.66736232,170.81,170.76,26.66736232]
[1730385156006,26.66736232,170.82,170.76,26.66736232]
[1730385156314,26.66736232,170.81,170.76,32.52326232]
[1730385156633,26.66736232,170.82,170.77,26.66736232]
[1730385156802,20.0,170.83,170.78,26.66736232]
[1730385157431,20.0,170.83,170.79,26.66736232]
[1730385157820,20.0,170.83,170.78,26.66736232]
[1730385158123,26.66736232,170.82,170.77,50.44424632]
[1730385158326,26.66736232,170.82,170.77,23.776884]
[1730385158525,26.66736232,170.82,170.77,50.44424632]
[1730385158721,26.66736232,170.83,170.78,26.66736232]
[1730385158927,26.66736232,170.82,170.77,47.16236232]
[1730385159542,32.52126232,170.83,170.77,47.16236232]
[1730385160030,46.66736232,170.84,170.78,26.66736232]
[1730385160218,33.12496302,170.87,170.81,26.66736232]
[1730385160424,27.27236302,170.87,170.82,26.66736232]
[1730385160617,0.6050007,170.87,170.82,26.66736232]
[1730385160820,0.6050007,170.87,170.84,26.66736232]
[1730385161214,0.6050007,170.87,170.85,26.66736232]
[1730385161517,0.6050007,170.87,170.83,26.66736232]
[1730385161715,0.6050007,170.87,170.84,26.66736232]
[1730385162142,0.6050007,170.87,170.84,5.8533]
[1730385162432,33.12496302,170.87,170.81,26.66736232]
[1730385162839,0.6050007,170.87,170.83,50.44424632]
[1730385163015,0.6050007,170.87,170.82,26.66736232]
[1730385163215,0.6050007,170.87,170.83,26.66736232]
[1730385164143,0.6050007,170.87,170.82,26.66736232]
[1730385164144,33.12476302,170.87,170.82,26.66736232]
[1730385164321,26.66736232,170.85,170.81,20.4902]
[1730385164820,0.6050007,170.87,170.83,26.66736232]
[1730385165154,0.6050007,170.87,170.85,26.66736232]
[1730385165334,0.6050007,170.87,170.86,26.66736232]
[1730385165712,0.6050007,170.87,170.85,26.66736232]
[1730385166115,0.6050007,170.87,170.85,5.8527]
[1730385166644,0.6050007,170.87,170.85,47.15276232]
[1730385167027,0.6050007,170.87,170.86,26.66736232]
[1730385167938,0.6050007,170.87,170.86,56.29694632]
[1730385169218,0.6050007,170.87,170.86,62.60593632]
[1730385169425,0.6050007,170.87,170.86,82.70593632]
[1730385169628,0.6050007,170.87,170.86,82.95691632]
[1730385170338,0.6050007,170.87,170.86,83.05691632]
[1730385170923,0.6050007,170.87,170.86,82.73142632]
[1730385171121,0.6050007,170.87,170.86,82.60593632]
[1730385171327,0.6050007,170.87,170.86,58.82905232]
[1730385172233,0.6050007,170.87,170.86,58.92905232]
[1730385172426,0.6050007,170.87,170.86,83.05691632]
[1730385172634,0.6050007,170.87,170.86,82.95691632]
[1730385172843,0.6050007,170.87,170.86,82.85691632]
[1730385173033,0.6050007,170.87,170.86,82.73142632]
[1730385173625,0.6050007,170.87,170.86,82.60593632]
[1730385173835,0.6050007,170.87,170.86,38.70356232]
[1730385174126,0.6050007,170.87,170.86,32.52006232]
[1730385174920,0.6050007,170.87,170.86,32.64555232]
[1730385175148,0.6050007,170.87,170.86,56.42243632]
[1730385175945,0.6050007,170.87,170.86,76.42243632]
[1730385176449,0.6050007,170.87,170.86,76.64792632]
[1730385176654,0.6050007,170.87,170.86,76.87341632]
[1730385178519,0.6050007,170.87,170.86,76.77341632]
[1730385178729,0.6050007,170.87,170.86,76.87341632]
[1730385178928,5.848,171.0,170.89,0.22549]
[1730385179125,38.61168624,171.01,170.96,26.66736232]
[1730385179343,32.51506232,171.01,170.96,26.66736232]
[1730385180062,33.18336232,171.03,170.98,26.66736232]
[1730385180348,32.51426232,171.03,170.98,26.66736232]
[1730385180549,32.51426232,171.03,170.91,49.63226232]
[1730385180550,26.66736232,171.0,170.96,26.66736232]
[1730385180729,26.66736232,170.99,170.95,26.66736232]
[1730385181053,26.66736232,171.0,170.95,56.29384632]
[1730385181634,26.66736232,171.01,170.96,26.66736232]
[1730385181844,26.66736232,171.0,170.95,56.29384632]
[1730385182151,26.66736232,170.98,170.93,32.51766232]
[1730385182335,26.66736232,170.98,170.94,23.776884]
[1730385182520,26.66736232,171.01,170.95,26.66736232]
[1730385182727,20.0,171.01,170.96,26.66736232]
[1730385182922,32.51456232,171.02,170.97,5.8489]
[1730385183238,20.0,171.02,170.98,50.44424632]
[1730385183425,46.66736232,171.02,170.98,23.776884]
[1730385184026,46.66736232,171.02,170.97,47.13866232]
[1730385184250,26.66736232,171.01,170.97,14.6224]
[1730385185048,52.51476232,171.02,170.97,14.6224]
[1730385185353,0.6050007,171.04,171.0,26.66736232]
[1730385185650,0.6050007,171.04,171.01,26.66736232]
[1730385185954,0.6050007,171.04,171.02,50.44424632]
[1730385186148,0.6050007,171.04,171.03,32.51426232]
[1730385186352,0.6050007,171.04,171.03,56.29114632]
[1730385188747,0.6050007,171.04,171.03,50.44424632]
[1730385188954,0.6050007,171.04,171.01,26.66736232]
[1730385189270,0.6050007,171.04,171.01,23.776884]
[1730385189550,0.6050007,171.04,171.02,26.66736232]
[1730385189958,0.6050007,171.04,171.03,23.776884]
[1730385190435,0.6050007,171.04,171.02,23.776884]
[1730385190757,0.6050007,171.04,171.02,50.44424632]
[1730385191058,33.11896302,171.04,171.01,23.776884]
[1730385191248,0.6050007,171.04,171.01,23.776884]
[1730385191430,0.6050007,171.04,171.01,50.44424632]
[1730385191631,0.6050007,171.04,171.02,26.66736232]
[1730385191862,0.6050007,171.04,171.03,26.66736232]
[1730385192253,0.6050007,171.04,171.02,32.51446232]
[1730385192560,0.6050007,171.04,171.01,70.91064632]
[1730385192936,0.6050007,171.04,171.01,44.243284]
[1730385193160,0.6050007,171.04,171.01,70.91064632]
[1730385193658,0.6050007,171.04,171.01,38.395684]
[1730385194345,0.6050007,171.04,171.01,65.06304632]
[1730385194647,0.6050007,171.04,171.01,70.91064632]
[1730385194860,0.6050007,171.04,171.02,26.66736232]
[1730385195164,0.6050007,171.04,171.03,50.44424632]
[1730385196458,0.6050007,171.04,171.03,56.29114632]
[1730385197157,0.6050007,171.04,171.01,41.28616232]
[1730385197360,0.6050007,171.04,171.02,50.44424632]
[1730385197560,0.6050007,171.04,171.03,26.66736232]
[1730385197767,0.6050007,171.04,171.03,50.56973632]
[1730385198567,0.6050007,171.04,171.03,56.41663632]
[1730385199241,0.6050007,171.04,171.03,56.51663632]
[1730385199448,32.76961597,171.14,171.06,0.12549]
[1730385199663,0.6050007,171.21,171.06,0.12549]
[1730385199664,0.6050007,171.21,171.14,24.027864]
[1730385199952,0.6050007,171.21,171.18,26.66736232]
[1730385200179,0.6050007,171.21,171.19,26.66736232]
[1730385200459,6.4458007,171.21,171.17,26.66736232]
[1730385201066,6.4458007,171.21,171.18,26.66736232]
[1730385201566,0.6050007,171.21,171.18,26.66736232]
[1730385202072,26.66736232,171.19,171.13,26.66736232]
[1730385202749,26.66736232,171.2,171.14,26.66736232]
[1730385203149,5.8414,171.19,171.14,26.66736232]
[1730385204354,26.66736232,171.19,171.14,26.66736232]
[1730385205175,32.50846232,171.2,171.14,26.66736232]
[1730385205373,32.50846232,171.2,171.14,32.51036232]
[1730385205862,5.8411,171.2,171.12,26.66736232]
[1730385206073,26.66736232,171.15,171.09,26.66736232]
[1730385206448,5.8431,171.14,171.1,26.66736232]
[1730385206752,32.51046232,171.14,171.08,47.12526232]
[1730385206960,32.51046232,171.14,171.06,26.66736232]
[1730385206961,26.66736232,171.11,171.06,26.66736232]
[1730385207162,26.66736232,171.11,171.05,41.28296232]
[1730385207540,26.66736232,171.11,171.06,26.66736232]
[1730385208073,26.66736232,171.08,171.03,26.66736232]
[1730385208278,26.66736232,171.07,171.02,26.66736232]
[1730385208567,26.66736232,171.07,171.01,14.6182]
[1730385208568,32.51306232,171.07,171.01,47.13296232]
[1730385208870,32.51306232,171.07,171.01,14.6182]
[1730385208871,26.66736232,171.05,171.01,14.6182]
[1730385209042,26.66736232,171.05,171.0,26.66736232]
[1730385209240,26.66736232,171.04,170.99,32.51556232]
[1730385209446,26.66736232,171.08,171.03,26.66736232]
[1730385209665,26.66736232,171.08,171.02,26.66736232]
[1730385209863,26.66736232,171.08,171.03,26.66736232]
[1730385210070,26.66736232,171.07,171.02,26.66736232]
[1730385210284,20.0,171.08,171.04,26.66736232]
[1730385210565,26.66736232,171.11,171.06,26.66736232]
[1730385210758,32.51156232,171.11,171.06,26.66736232]
[1730385210958,37.3307,171.15,171.01,49.7046]
[1730385210959,32.51146232,171.12,171.07,26.66736232]
[1730385211140,26.66736232,171.12,171.07,26.66736232]
[1730385211340,5.8437,171.13,171.09,26.66736232]
[1730385212443,32.51046232,171.14,171.09,32.51206232]
[1730385213265,26.66736232,171.11,171.06,14.614]
[1730385213473,26.66736232,171.11,171.06,20.4596]
[1730385214151,26.66736232,171.1,171.06,14.614]
[1730385214351,26.66736232,171.1,171.04,26.66736232]
[1730385214569,32.51186232,171.1,171.04,26.66736232]
[1730385214866,26.66736232,171.08,171.03,47.13156232]
[1730385215071,26.66736232,171.08,171.03,41.28466232]
[1730385215451,26.66736232,171.05,171.0,26.66736232]
[1730385215643,26.66736232,171.04,170.99,41.28766232]
[1730385216068,26.66736232,171.03,170.98,26.66736232]
[1730385216366,26.66736232,171.02,170.97,26.66736232]
[1730385216547,32.51446232,171.03,170.98,26.66736232]
[1730385217353,26.66736232,171.02,170.97,32.51616232]
[1730385217561,32.51446232,171.03,170.98,26.66736232]
[1730385218273,26.66736232,171.09,171.02,26.66736232]
[1730385218573,32.51186232,171.1,171.05,26.66736232]
[1730385218771,32.51186232,171.1,171.04,26.66736232]
[1730385219072,26.66736232,171.08,171.03,47.13156232]
[1730385219444,26.66736232,171.1,171.05,26.66736232]
[1730385219652,20.0,171.11,171.06,26.66736232]
[1730385219852,5.8438,171.13,171.08,26.66736232]
[1730385220247,26.66736232,171.14,171.09,26.66736232]
[1730385220452,26.66736232,171.13,171.08,26.66736232]
[1730385220855,26.66736232,171.14,171.08,26.66736232]
[1730385221052,26.66736232,171.14,171.09,26.66736232]
[1730385221452,43.29736232,171.15,171.1,5.8445]
[1730385222055,26.66736232,171.15,171.1,5.8445]
[1730385222253,26.66736232,171.14,171.09,47.12366232]
[1730385222454,26.66736232,171.13,171.09,20.4563]
[1730385222972,5.843,171.15,171.09,20.4563]
[1730385222973,26.66736232,171.14,171.09,47.12366232]
[1730385223148,32.51036232,171.15,171.1,26.66736232]
[1730385223347,46.66736232,171.16,171.11,26.66736232]
[1730385223547,20.0,171.16,171.11,26.66736232]
[1730385223761,26.66736232,171.15,171.1,14.6113]
[1730385224557,26.66736232,171.14,171.09,26.66736232]
[1730385224745,26.66736232,171.13,171.08,32.51256232]
[1730385224949,26.66736232,171.11,171.06,20.4596]
[1730385225371,26.66736232,171.11,171.06,41.28136232]
[1730385225553,26.66736232,171.1,171.05,26.66736232]
[1730385225754,32.51156232,171.11,171.06,26.66736232]
[1730385227174,5.8442,171.11,171.07,26.66736232]
[1730385227653,20.0,171.11,171.07,32.51266232]
[1730385228090,20.0,171.11,171.07,47.12656232]
[1730385229552,46.66736232,171.11,171.07,20.4592]
[1730385229967,52.51176232,171.11,171.05,32.51326232]
[1730385230199,26.66736232,171.08,171.02,26.66736232]
[1730385230353,26.66736232,171.08,171.02,47.13256232]
[1730385230774,47.0817,171.11,171.02,14.6181]
[1730385230956,26.66736232,171.03,170.98,26.66736232]
[1730385231280,26.66736232,171.03,170.91,49.42486232]
[1730385231281,26.66736232,171.02,170.97,26.66736232]
[1730385231468,26.66736232,171.03,170.97,26.66736232]
[1730385231874,26.66736232,171.03,170.98,26.66736232]
[1730385231875,20.0,171.03,170.98,26.66736232]
[1730385232170,20.0,171.05,171.01,26.66736232]
[1730385232481,5.8459,171.06,171.02,26.66736232]
[1730385232782,32.51226232,171.09,171.03,26.66736232]
[1730385233082,32.51226232,171.09,171.05,26.66736232]
[1730385233083,20.0,171.08,171.05,26.66736232]
[1730385233575,20.0,171.1,171.05,26.66736232]
[1730385233774,25.8445,171.1,171.05,26.66736232]
[1730385234173,16.2559,171.15,171.05,20.4616]
[1730385234474,26.66736232,171.08,171.03,26.66736232]
[1730385234778,26.66736232,171.08,171.03,32.51416232]
[1730385234970,26.66736232,171.09,171.04,26.66736232]
[1730385235494,26.66736232,171.09,171.04,32.51386232]
[1730385236364,26.66736232,171.09,171.04,26.66736232]
[1730385236564,26.66736232,171.08,171.04,5.8465]
[1730385236762,26.66736232,171.07,171.03,14.6173]
[1730385236984,26.66736232,171.07,171.03,20.4641]
[1730385237281,26.66736232,171.06,171.01,5.8475]
[1730385237466,26.66736232,171.06,171.01,47.13386232]
[1730385237663,26.66736232,171.06,171.01,20.4665]
[1730385237872,26.66736232,171.06,171.01,47.13386232]
[1730385238060,26.66736232,171.07,171.01,47.13386232]
[1730385238562,32.51296232,171.07,171.02,26.66736232]
[1730385238874,32.51296232,171.07,171.01,20.4665]
[1730385238875,26.66736232,171.06,171.01,20.4665]
[1730385239257,26.66736232,171.05,171.01,14.619]
[1730385239462,20.25098,171.06,170.97,47.13776232]
[1730385239679,26.66736232,171.03,170.97,47.13776232]
[1730385239873,26.66736232,171.03,170.98,26.66736232]
[1730385240065,46.66736232,171.06,171.0,26.66736232]
[1730385240461,32.51256232,171.08,171.03,5.8469]
[1730385240778,46.66736232,171.07,171.03,5.8469]
[1730385240983,26.66736232,171.05,171.0,26.66736232]
[1730385241193,26.66736232,171.05,170.99,26.66736232]
[1730385241362,26.66736232,171.06,171.0,26.66736232]
[1730385241562,46.66736232,171.07,171.01,26.66736232]
[1730385241762,46.66736232,171.07,171.02,26.66736232]
[1730385241994,46.66736232,171.07,171.01,26.66736232]
[1730385242490,32.51326232,171.06,171.01,32.51476232]
[1730385242891,26.66736232,171.05,171.0,20.4673]
[1730385243063,26.66736232,171.05,171.0,47.13466232]
[1730385243391,32.51326232,171.06,171.01,26.66736232]
[1730385243803,20.0,171.07,171.0,20.4673]
[1730385243804,20.0,171.07,171.02,26.66736232]
[1730385244587,46.66736232,171.07,171.03,5.8469]
[1730385244965,20.0,171.07,171.03,5.8469]
[1730385245487,25.8456,171.07,171.03,5.8469]
[1730385246172,52.51296232,171.07,171.03,5.8469]
[1730385246571,26.66736232,171.06,171.01,47.13396232]
[1730385246764,26.66736232,171.05,170.99,26.66736232]
[1730385246970,26.66736232,171.04,170.99,5.848]
[1730385247571,26.66736232,171.05,170.99,32.51536232]
[1730385248070,32.51386232,171.05,170.99,47.13606232]
[1730385248271,32.51386232,171.05,171.0,26.66736232]
[1730385248481,52.51296232,171.07,171.02,26.66736232]
[1730385249566,52.51296232,171.07,171.02,32.51446232]
[1730385249969,52.51296232,171.07,171.02,5.8471]
[1730385250267,26.66736232,171.06,171.01,20.4659]
[1730385250469,0.25098,171.06,170.97,29.2448]
[1730385250683,0.25098,171.06,170.93,6.308]
[1730385250684,16.62158043,171.01,170.95,16.62158043]
[1730385250992,16.62158043,171.0,170.95,16.62158043]
[1730385251174,15.36528,171.06,170.94,20.475]
[1730385251378,16.62158043,171.02,170.97,16.62158043]
[1730385251588,16.62158043,171.02,170.98,5.8486]
[1730385251899,5.8474,171.02,170.97,14.6222]
[1730385252085,16.62158043,171.0,170.97,14.6222]
[1730385252276,16.62158043,171.01,170.97,14.6222]
[1730385252594,16.62158043,171.01,170.91,16.62158043]
[1730385252595,16.62158043,170.98,170.91,16.62158043]
[1730385252797,16.62158043,170.95,170.91,14.627]
[1730385252965,16.62158043,170.97,170.92,16.62158043]
[1730385253170,16.62158043,170.98,170.92,16.62158043]
[1730385253594,16.62158043,170.97,170.92,16.62158043]
[1730385253770,16.62158043,170.96,170.92,5.8503]
[1730385254691,26.62009171,170.96,170.92,5.8503]
[1730385256371,26.62009171,170.97,170.92,26.62009171]
[1730385256576,26.62009171,171.0,170.95,26.62009171]
[1730385257370,26.62009171,170.99,170.94,26.62009171]
[1730385257571,26.62009171,170.99,170.89,35.7283]
[1730385257572,26.62009171,170.95,170.88,14.6301]
[1730385257792,26.62009171,170.93,170.88,41.25019171]
[1730385258097,26.62009171,170.92,170.88,14.6301]
[1730385258295,26.62009171,170.89,170.86,5.8527]
[1730385258601,26.62009171,170.9,170.86,5.8527]
[1730385258899,26.62009171,170.91,170.86,47.10459171]
[1730385259895,26.62009171,170.88,170.83,41.25439171]
[1730385260402,26.62009171,170.89,170.84,26.62009171]
[1730385260970,26.62009171,170.89,170.85,5.853]
[1730385261199,26.62009171,170.89,170.85,20.4857]
[1730385261899,26.62009171,170.9,170.85,47.10579171]
[1730385262404,46.62009171,170.92,170.86,26.62009171]
[1730385262581,26.62009171,170.91,170.86,26.62009171]
[1730385262980,26.62009171,170.91,170.87,5.8524]
[1730385264099,26.62009171,170.93,170.88,26.62009171]
[1730385264475,26.62009171,170.94,170.89,26.62009171]
[1730385265189,26.62009171,170.93,170.89,20.4802]
[1730385265504,26.62009171,170.92,170.89,20.4802]
[1730385266295,26.62009171,170.93,170.88,26.62009171]
[1730385267105,26.62009171,170.94,170.88,26.62009171]
[1730385267304,26.62009171,170.94,170.89,26.62009171]
[1730385267880,32.46909171,170.97,170.92,26.62009171]
[1730385268101,26.62009171,170.96,170.91,26.62009171]
[1730385268502,26.62009171,170.96,170.91,32.47089171]
[1730385269725,32.46909171,170.97,170.92,26.62009171]
[1730385270581,26.62009171,170.96,170.91,47.09839171]
[1730385270790,32.46909171,170.97,170.92,26.62009171]
[1730385271894,32.46909171,170.97,170.92,32.47059171]
[1730385274594,22.48507268,170.97,170.92,16.63607268]
[1730385275001,16.63607268,170.96,170.91,31.26357268]
[1730385275608,16.63607268,170.92,170.87,16.63607268]
[1730385275809,16.63607268,170.91,170.86,22.48867268]
[1730385275991,16.63607268,170.87,170.82,16.63607268]
[1730385277314,22.48867268,170.87,170.82,31.27127268]
[1730385277517,22.48867268,170.87,170.82,37.12537268]
[1730385277819,16.63607268,170.86,170.82,20.4893]
[1730385278520,16.63607268,170.88,170.83,16.63607268]
[1730385278825,16.63607268,170.87,170.82,37.12537268]
[1730385279630,5.8517,170.89,170.85,16.63607268]
[1730385279918,20.0,170.89,170.85,16.63607268]
[1730385280302,20.0,170.89,170.84,16.63607268]
[1730385281104,25.8517,170.89,170.84,37.12287268]
[1730385281319,25.8517,170.89,170.84,31.26957268]
[1730385281515,22.48667268,170.93,170.87,16.63607268]
[1730385281704,22.48617268,170.94,170.88,16.63607268]
[1730385281904,16.63607268,170.97,170.92,16.63607268]
[1730385282123,16.63607268,171.0,170.95,16.63607268]
[1730385282323,22.48407268,171.0,170.95,16.63607268]
[1730385282611,5.848,171.0,170.96,16.63607268]
[1730385282839,11.10788017,170.99,170.97,16.63607268]
[1730385283129,16.63607268,171.01,170.96,16.63607268]
[1730385283324,4.27275605,171.0,170.97,16.63607268]
[1730385283507,4.27275605,170.99,170.97,16.63607268]
[1730385283715,22.48337268,171.02,170.97,16.63607268]
[1730385284027,11.10993515,171.01,170.97,16.63607268]
[1730385284205,4.27305198,171.0,170.97,16.63607268]
[1730385284395,4.27305198,171.0,170.97,26.60238329]
[1730385284795,4.27305198,171.0,170.96,26.60238329]
[1730385285302,4.27305198,171.0,170.78,26.60238329]
[1730385285303,0.1,170.91,170.78,26.60238329]
[1730385285498,26.60238329,170.81,170.77,21.9349]
[1730385286110,26.60238329,170.8,170.77,21.9349]
[1730385286300,26.60238329,170.81,170.77,21.9349]
[1730385286818,26.60238329,170.81,170.78,23.776884]
[1730385287211,26.60238329,170.82,170.78,23.776884]
[1730385287414,26.60238329,170.88,170.82,23.776884]
[1730385287599,26.60238329,170.88,170.84,23.776884]
[1730385287802,26.60238329,170.89,170.84,23.776884]
[1730385288102,26.60238329,170.88,170.84,23.776884]
[1730385288305,26.60238329,170.89,170.84,23.776884]
[1730385288507,26.60238329,170.89,170.86,23.776884]
[1730385289316,26.60238329,170.88,170.86,23.776884]
[1730385289521,26.60238329,170.87,170.85,20.0]
[1730385289724,26.60238329,170.86,170.82,23.776884]
[1730385289923,26.60238329,170.84,170.78,26.60238329]
[1730385290256,26.60238329,170.81,170.77,21.9349]
[1730385290431,26.60238329,170.78,170.77,21.9349]
[1730385290657,26.60238329,170.78,170.72,48.47788329]
[1730385290802,26.60238329,170.77,170.72,21.8755]
[1730385291424,26.60238329,170.77,170.73,0.12549]
[1730385291598,26.60238329,170.77,170.72,21.8755]
[1730385291807,26.60238329,170.76,170.72,21.8755]
[1730385292430,26.60238329,170.76,170.73,20.0]
[1730385292598,26.60238329,170.75,170.72,21.8755]
[1730385293414,26.60238329,170.75,170.73,23.776884]
[1730385293623,26.60238329,170.76,170.73,23.776884]
[1730385294219,26.60238329,170.75,170.73,23.776884]
[1730385294843,26.60238329,170.75,170.68,0.1]
[1730385294844,26.60238329,170.74,170.68,20.12549]
[1730385295013,26.60238329,170.71,170.67,21.3071]
[1730385295212,26.60238329,170.7,170.67,21.3071]
[1730385295907,26.60238329,170.69,170.67,21.3071]
[1730385296442,26.60238329,170.68,170.67,45.083984]
[1730385296932,26.60238329,170.68,170.62,6.0351]
[1730385297138,26.60238329,170.64,170.62,6.0351]
[1730385297330,26.60238329,170.64,170.63,0.12549]
[1730385297532,26.60238329,170.65,170.63,0.12549]
[1730385297713,26.60238329,170.65,170.62,6.0351]
[1730385297919,26.60238329,170.64,170.62,6.0351]
[1730385298126,26.60238329,170.65,170.62,6.0351]
[1730385298332,26.60238329,170.66,170.63,20.0]
[1730385298528,26.60238329,170.65,170.63,20.0]
[1730385298815,26.60238329,170.67,170.63,23.776884]
[1730385299215,5.859,170.68,170.61,0.6050007]
[1730385299216,26.60238329,170.64,170.61,0.6050007]
[1730385299421,26.60238329,170.63,170.61,0.6050007]
[1730385299630,26.60238329,170.62,170.61,0.6050007]
[1730385300538,32.46328329,170.62,170.61,0.6050007]
[1730385300737,52.46328329,170.62,170.61,0.6050007]
[1730385300937,52.71426329,170.62,170.61,0.6050007]
[1730385301319,52.71426329,170.62,170.61,7e-07]
[1730385301938,52.46328329,170.62,170.61,7e-07]
[1730385302125,32.46328329,170.62,170.61,7e-07]
[1730385303850,52.58877329,170.62,170.61,7e-07]
[1730385304022,52.46328329,170.62,170.61,7e-07]
[1730385304847,32.46328329,170.62,170.61,7e-07]
[1730385305037,32.46298329,170.63,170.61,7e-07]
[1730385306451,26.60238329,170.62,170.61,7e-07]
[1730385308637,32.46328329,170.62,170.61,7e-07]
[1730385310837,26.60238329,170.62,170.61,7e-07]
[1730385311065,5.8596,170.66,170.61,26.60238399]
[1730385311241,5.8596,170.66,170.62,26.60238329]
[1730385311437,32.46198329,170.66,170.61,7e-07]
[1730385311645,32.46198329,170.66,170.61,26.60238399]
[1730385312536,5.8596,170.66,170.63,26.60238329]
[1730385313370,5.8596,170.66,170.62,26.60238329]
[1730385313842,26.60238329,170.68,170.62,26.60238329]
[1730385314044,26.60238329,170.7,170.65,26.60238329]
[1730385314257,26.60238329,170.69,170.64,26.60238329]
[1730385314441,26.60238329,170.67,170.62,26.60238329]
[1730385314642,26.60238329,170.67,170.61,26.60238399]
[1730385315284,26.60238329,170.63,170.61,7e-07]
[1730385315563,26.60238329,170.62,170.61,7e-07]
[1730385315765,26.60238329,170.66,170.61,7e-07]
[1730385315948,5.8599,170.65,170.61,7e-07]
[1730385316268,32.46228329,170.65,170.61,7e-07]
[1730385316644,26.60238329,170.63,170.61,7e-07]
[1730385317446,26.60238329,170.64,170.61,7e-07]
[1730385317758,26.60238329,170.63,170.61,7e-07]
[1730385317960,5.8609,170.62,170.61,7e-07]
[1730385318963,52.71426329,170.62,170.61,7e-07]
[1730385319161,52.71426329,170.62,170.5,16.437]
[1730385319162,0.25098,170.6,170.5,43.03938329]
[1730385319464,26.60238329,170.54,170.5,16.437]
[1730385319669,26.60238329,170.53,170.5,16.437]
[1730385319977,5.8644,170.52,170.5,16.437]
[1730385320676,5.8644,170.52,170.48,26.60238329]
[1730385320677,26.60238329,170.51,170.46,26.60238329]
[1730385321043,32.46678329,170.52,170.47,26.60238329]
[1730385321352,5.8644,170.52,170.47,26.60238329]
[1730385322948,26.60238329,170.54,170.49,26.60238329]
[1730385323156,26.60238329,170.56,170.51,26.60238329]
[1730385323859,26.60238329,170.55,170.5,26.60238329]
[1730385324268,5.8637,170.54,170.51,26.60238329]